bitfinex-derivatives/quotes_ETHF0:USTF0_20260203
["timestamp","ask_amount","ask_price","bid_price","bid_amount"]
[1770099585825,4.3256,2312.9,2312.4,0.22125346]
[1770099586330,4.3256,2312.8,2312.4,0.22125346]
[1770099586528,6.65159551,2313.0,2312.4,0.22125346]
[1770099587524,4.3256,2313.0,2312.4,0.22125346]
[1770099587724,6.65159551,2312.9,2312.4,0.22125346]
[1770099587926,2.32599551,2312.9,2312.4,0.22125346]
[1770099588127,6.65159551,2312.9,2312.4,0.22125346]
[1770099588831,4.3256,2312.9,2312.4,0.22125346]
[1770099589130,2.32599551,2313.1,2312.4,2.73122146]
[1770099589332,6.65159551,2313.1,2312.4,2.73122146]
[1770099590331,2.32599551,2313.1,2312.4,2.73122146]
[1770099590525,2.53842819,2313.7,2312.4,2.73122146]
[1770099590830,2.53842819,2313.5,2312.4,2.73122146]
[1770099591225,7.02776146,2313.4,2312.4,2.73122146]
[1770099592130,2.38291009,2313.3,2312.4,0.22125346]
[1770099592326,2.38291009,2313.1,2312.4,0.22125346]
[1770099592730,2.38291009,2313.0,2312.4,0.00483346]
[1770099592932,2.38291009,2312.4,2311.8,0.21648]
[1770099593227,2.38291009,2313.0,2311.9,2.43111251]
[1770099593431,2.38291009,2313.0,2312.1,0.21645]
[1770099593634,2.38291009,2312.8,2312.1,0.21645]
[1770099593930,2.38291009,2312.8,2312.1,0.22111864]
[1770099594131,6.70851009,2312.6,2312.1,0.22111864]
[1770099594331,2.38291009,2312.6,2312.1,0.22111864]
[1770099594533,6.70851009,2312.6,2312.1,0.22111864]
[1770099594833,2.38291009,2313.2,2312.1,0.22111864]
[1770099595032,2.38291009,2312.9,2312.1,0.22111864]
[1770099595430,6.70851009,2312.9,2312.1,0.22111864]
[1770099595632,2.38291009,2312.9,2312.2,0.21644]
[1770099595834,2.38291009,2312.9,2312.2,2.64755251]
[1770099596532,2.38291009,2312.9,2312.2,0.21644]
[1770099596734,4.3256,2312.8,2312.2,0.21644]
[1770099596930,2.38291009,2312.9,2312.2,2.64755251]
[1770099597129,2.38291009,2313.2,2312.2,2.64755251]
[1770099597534,2.38291009,2313.0,2312.2,2.64755251]
[1770099598034,2.38291009,2312.7,2312.2,0.21644]
[1770099598434,2.38291009,2312.6,2312.2,0.21644]
[1770099598633,2.38291009,2312.6,2312.1,0.00466864]
[1770099598829,2.69926396,2313.3,2312.1,0.00466864]
[1770099598830,6.70851009,2312.4,2312.1,0.00466864]
[1770099599027,2.38291009,2312.4,2312.1,0.00466864]
[1770099599235,4.3256,2312.3,2311.9,1.0]
[1770099599434,2.38291009,2312.4,2311.9,1.0]
[1770099599935,2.38291009,2313.2,2311.9,1.0]
[1770099600138,2.38291009,2312.8,2311.9,1.00444419]
[1770099600334,2.38291009,2312.6,2311.9,1.00444419]
[1770099600735,2.38291009,2312.2,2311.9,1.00444419]
[1770099600937,2.38291009,2312.2,2311.1,0.21654]
[1770099601131,2.72371136,2312.1,2311.3,0.21653]
[1770099601336,2.38291009,2312.4,2311.5,2.64762251]
[1770099601636,4.94371795,2312.5,2311.9,2.43111251]
[1770099601836,4.94793815,2312.5,2311.9,2.43548304]
[1770099602138,6.91233904,2313.0,2311.9,2.65195304]
[1770099602336,2.38291009,2313.0,2311.9,2.65195304]
[1770099602536,2.38291009,2313.0,2312.1,2.43111251]
[1770099602737,2.38291009,2312.8,2311.9,0.00437053]
[1770099602934,2.38291009,2312.8,2311.9,2.43548304]
[1770099603134,2.38767672,2312.8,2311.9,2.43548304]
[1770099603334,0.00476663,2312.8,2312.1,2.64756251]
[1770099604928,2.38291009,2313.1,2312.7,0.21639]
[1770099605130,4.3256,2312.8,2312.2,2.43111251]
[1770099605331,6.70851009,2313.0,2312.3,0.21643]
[1770099605532,2.38291009,2313.4,2312.3,2.64754251]
[1770099605735,2.38291009,2313.3,2312.3,2.64754251]
[1770099605931,2.38291009,2313.0,2312.3,2.64754251]
[1770099606131,4.3256,2313.2,2312.4,2.64753251]
[1770099606339,2.38687768,2313.3,2312.4,2.64753251]
[1770099606640,4.3256,2313.2,2312.4,2.64753251]
[1770099606836,2.38291009,2313.1,2312.4,0.21642]
[1770099607133,6.70851009,2313.1,2312.4,0.21642]
[1770099607336,4.3256,2313.0,2312.4,0.21642]
[1770099608039,0.00396759,2313.3,2312.5,2.64753251]
[1770099608431,6.70851009,2313.2,2312.5,2.64753251]
[1770099608738,1.9838665,2313.3,2312.6,0.2164]
[1770099608944,4.3256,2313.2,2312.6,0.2164]
[1770099609137,4.3256,2313.4,2312.6,0.2164]
[1770099609538,4.3256,2313.2,2312.6,0.2164]
[1770099609738,4.3256,2313.5,2312.6,0.2164]
[1770099609936,0.00356796,2313.3,2312.5,2.43111251]
[1770099610139,4.32916796,2313.3,2312.5,2.43111251]
[1770099610341,4.3256,2313.2,2312.5,2.43111251]
[1770099610742,4.3256,2313.0,2312.3,0.21643]
[1770099610945,2.38291009,2313.0,2312.3,0.21643]
[1770099611146,6.70851009,2312.8,2312.3,0.21643]
[1770099611347,2.38291009,2312.8,2312.3,0.21643]
[1770099611641,4.3256,2312.7,2312.3,0.21643]
[1770099612042,1.78519068,2312.7,2312.3,2.64754251]
[1770099612248,2.38291009,2313.1,2312.3,2.64754251]
[1770099612448,1.78519068,2313.0,2312.3,2.64754251]
[1770099612747,1.78519068,2312.9,2312.3,2.64754251]
[1770099613042,4.16810077,2312.9,2312.4,0.21642]
[1770099613245,1.78519068,2312.8,2312.4,0.21642]
[1770099613744,1.78519068,2312.7,2312.4,0.21642]
[1770099614846,1.78519068,2312.6,2312.4,0.21642]
[1770099615047,0.77590442,2312.7,2312.4,0.21642]
[1770099615849,0.00356796,2313.3,2312.6,2.62861628]
[1770099616242,2.38291009,2313.2,2312.6,0.2164]
[1770099622448,0.00356796,2313.3,2312.6,2.31155804]
[1770099622648,2.43718032,2313.8,2313.1,0.21636]
[1770099623445,2.43718032,2313.8,2313.2,0.21635]
[1770099623646,0.00357665,2313.8,2313.3,2.32293781]
[1770099623854,2.43718032,2314.3,2313.2,2.32293781]
[1770099624748,2.43718032,2314.3,2313.4,2.32293781]
[1770099625049,2.44167005,2314.3,2313.5,0.21632]
[1770099629750,2.44167005,2314.3,2313.5,2.29643003]
[1770099629951,0.00448973,2314.3,2313.8,2.51272003]
[1770099630256,38.03835024,2314.9,2313.8,2.51272003]
[1770099630257,2.43718032,2314.9,2314.0,2.51270003]
[1770099630647,7.0178925,2314.8,2314.1,7.91682526]
[1770099630858,2.43718032,2315.1,2314.2,2.51269003]
[1770099631051,7.17429794,2315.1,2314.3,2.51268003]
[1770099631356,2.44061492,2315.1,2314.4,2.51267003]
[1770099632656,2.44061492,2315.1,2314.4,0.21624]
[1770099633154,2.44061492,2315.1,2314.0,3.027]
[1770099633155,0.0034346,2315.1,2314.6,2.32470113]
[1770099633951,0.0034346,2315.1,2314.6,2.54092113]
[1770099635055,2.44061492,2315.1,2314.6,0.21622]
[1770099635955,2.44061492,2315.1,2314.0,2.61758445]
[1770099636352,2.44061492,2315.1,2314.1,2.40130445]
[1770099636558,2.44061492,2315.1,2314.2,2.40130445]
[1770099637157,2.44061492,2315.1,2314.3,0.21624]
[1770099637354,0.0034346,2315.1,2314.4,2.61754445]
[1770099637662,0.0034346,2315.1,2314.5,2.61753445]
[1770099637857,2.76820726,2315.9,2314.8,2.40130445]
[1770099637858,2.43718032,2315.8,2314.8,2.40130445]
[1770099638060,2.43718032,2315.8,2315.0,0.21617]
[1770099638262,2.43718032,2315.5,2315.0,0.21617]
[1770099638463,2.44061492,2315.6,2315.0,0.21617]
[1770099638662,2.44061492,2315.5,2315.0,0.21617]
[1770099638858,2.43718032,2315.3,2314.7,2.40130445]
[1770099639061,0.0034346,2315.2,2314.6,3.507]
[1770099639266,2.44061492,2315.3,2314.6,3.507]
[1770099639763,2.44109817,2315.5,2314.7,7.96108462]
[1770099640161,0.0034346,2315.4,2314.6,3.507]
[1770099640463,2.43718032,2315.3,2314.6,5.90830445]
[1770099640866,0.00391785,2315.5,2314.7,2.40130445]
[1770099641262,2.43718032,2315.3,2314.8,0.2162]
[1770099641758,0.0034346,2315.2,2314.8,0.2162]
[1770099641964,2.44061492,2315.3,2314.8,0.2162]
[1770099642164,0.0034346,2315.4,2314.8,2.61750445]
[1770099642365,2.44109817,2315.5,2314.8,2.61750445]
[1770099642669,2.44109817,2315.5,2314.9,0.21619]
[1770099642869,2.44109817,2315.5,2315.1,2.40130445]
[1770099642870,0.00391785,2315.5,2315.1,2.40130445]
[1770099643269,2.43718032,2316.0,2315.3,0.21615]
[1770099643670,0.22539916,2315.9,2315.3,0.21615]
[1770099644371,0.22967463,2315.9,2315.3,0.21615]
[1770099644873,2.66342035,2315.9,2315.3,0.21615]
[1770099645073,2.44061492,2315.6,2315.3,0.21615]
[1770099645270,2.43718032,2316.7,2315.7,2.33838525]
[1770099645475,2.43718032,2316.7,2315.6,0.21613]
[1770099645676,2.43718032,2316.5,2315.6,0.21613]
[1770099646073,2.43718032,2316.3,2315.6,0.21613]
[1770099646273,2.44275683,2316.3,2315.6,0.21993163]
[1770099646575,2.43718032,2316.1,2315.6,0.21993163]
[1770099646972,2.43718032,2316.1,2315.0,2.55456525]
[1770099647478,2.43718032,2316.1,2315.1,0.21617]
[1770099647681,2.43718032,2316.1,2315.1,2.51054784]
[1770099647979,2.43718032,2316.1,2315.1,2.51431686]
[1770099648876,2.43718032,2315.9,2315.1,0.21993902]
[1770099649372,2.43718032,2315.9,2315.1,2.54297275]
[1770099649676,2.43718032,2315.9,2315.1,0.21993902]
[1770099650069,2.43718032,2315.7,2315.1,0.21993902]
[1770099651875,2.43718032,2315.7,2315.1,0.00376902]
[1770099653775,2.35708589,2315.5,2315.1,0.00376902]
[1770099653979,4.82338029,2315.6,2315.1,2.32314204]
[1770099654179,2.35708589,2315.8,2315.1,2.32314204]
[1770099654378,2.35708589,2315.8,2315.1,0.00376902]
[1770099654580,2.35708589,2315.6,2315.1,0.00376902]
[1770099658279,2.35708589,2315.6,2314.9,0.21619]
[1770099658879,2.35708589,2315.6,2314.9,2.53225986]
[1770099659378,2.35708589,2315.6,2314.9,2.53721044]
[1770099660480,2.35708589,2315.6,2314.9,0.22114058]
[1770099660681,2.35708589,2315.5,2314.4,2.30729501]
[1770099660976,2.35708589,2315.2,2314.3,0.21624]
[1770099661182,2.35708589,2315.0,2313.8,3.024]
[1770099661479,2.35708589,2314.8,2313.8,3.024]
[1770099661676,2.35708589,2314.7,2313.8,3.02832517]
[1770099661875,2.35708589,2314.6,2313.8,3.02832517]
[1770099662080,2.3606751,2314.6,2313.8,3.02832517]
[1770099663081,2.35708589,2314.4,2313.3,2.45084776]
[1770099663482,2.54983191,2314.6,2313.3,2.45084776]
[1770099663483,2.35708589,2314.2,2313.3,2.45084776]
[1770099664583,2.35708589,2314.2,2313.3,2.45541937]
[1770099665282,2.35708589,2314.9,2314.2,0.21626]
[1770099665484,2.35708589,2314.9,2314.4,0.21624]
[1770099665684,2.35708589,2314.6,2314.0,3.025]
[1770099666384,2.35708589,2314.4,2314.0,3.025]
[1770099666585,0.00388183,2314.6,2314.1,2.45084776]
[1770099666786,0.00388183,2314.6,2314.0,3.025]
[1770099666987,2.36096772,2314.6,2314.0,3.24128]
[1770099667186,2.35708589,2314.4,2314.0,3.24128]
[1770099667387,2.35708589,2314.4,2314.0,3.025]
[1770099667688,2.35708589,2314.4,2313.5,5.20116776]
[1770099667986,2.35708589,2314.2,2313.5,0.21632]
[1770099668785,2.35708589,2314.0,2313.5,0.21632]
[1770099668989,2.35708589,2314.0,2313.3,0.00457161]
[1770099669189,2.35708589,2313.8,2313.3,0.00457161]
[1770099669390,2.35708589,2313.8,2313.1,3.025]
[1770099670789,2.35708589,2313.8,2313.1,3.02911315]
[1770099671380,2.35708589,2314.1,2313.2,2.66719776]
[1770099671787,2.35708589,2313.9,2313.2,2.66719776]
[1770099672382,2.35708589,2314.2,2313.6,0.21631]
[1770099672689,0.00388183,2314.6,2313.7,2.66714776]
[1770099672690,6.91669765,2314.5,2313.7,2.66714776]
[1770099672891,6.91669765,2314.5,2313.7,2.45084776]
[1770099673189,2.35708589,2314.5,2313.7,2.45084776]
[1770099673388,0.00388183,2314.6,2313.9,2.66712776]
[1770099673582,2.36096772,2314.6,2313.9,0.21628]
[1770099673989,2.35708589,2314.4,2313.3,4.98584776]
[1770099674290,0.00388183,2314.6,2313.3,4.98584776]
[1770099674291,2.35708589,2314.2,2313.4,0.21633]
[1770099674790,2.35708589,2314.0,2313.4,0.21633]
[1770099676091,2.35708589,2313.8,2313.1,3.03011315]
[1770099676291,7.09442867,2313.9,2313.2,2.45084776]
[1770099676491,2.35708589,2313.9,2313.2,2.45084776]
[1770099677187,2.35708589,2313.9,2313.4,0.21633]
[1770099679295,2.35708589,2313.7,2312.5,2.45084776]
[1770099679694,2.35708589,2313.5,2312.8,0.21639]
[1770099680190,2.35708589,2313.3,2312.8,0.21639]
[1770099680395,2.35708589,2313.3,2312.8,0.22024176]
[1770099680590,4.67203104,2313.2,2312.8,0.22024176]
[1770099680796,2.38218373,2313.1,2312.2,2.43506473]
[1770099681197,2.38218373,2313.5,2312.4,2.43506473]
[1770099681499,4.93043084,2313.4,2312.6,2.43506473]
[1770099681889,2.38218373,2313.3,2312.8,0.21639]
[1770099683796,2.38218373,2313.1,2312.6,0.00489065]
[1770099684598,2.38218373,2312.9,2312.2,0.21644]
[1770099685593,2.38539403,2312.9,2312.2,0.22039658]
[1770099686396,2.38218373,2312.7,2312.2,0.22039658]
[1770099686696,4.87557158,2312.6,2312.2,0.22039658]
[1770099686897,0.0032103,2312.9,2312.2,2.65546131]
[1770099687294,2.38218373,2313.3,2312.4,2.43506473]
[1770099687697,4.76771918,2313.1,2312.4,2.43506473]
[1770099687996,2.38218373,2313.3,2312.4,2.43506473]
[1770099688397,2.38584325,2313.3,2312.4,2.43506473]
[1770099689393,2.38584325,2313.3,2312.6,0.2164]
[1770099691801,38.03835024,2313.9,2312.6,0.2164]
[1770099691802,2.38218373,2314.3,2313.6,2.36270619]
[1770099692002,2.38218373,2314.3,2313.6,0.21631]
[1770099692296,2.38218373,2314.0,2313.0,2.7919281]
[1770099692497,2.38218373,2314.0,2313.0,5.8835581]
[1770099692701,4.89543293,2313.9,2313.2,0.21635]
[1770099693102,7.27761666,2313.9,2313.2,0.21635]
[1770099693402,2.38218373,2313.9,2313.2,0.21635]
[1770099697701,2.38218373,2313.9,2313.2,2.65141473]
[1770099697908,2.38767548,2314.0,2313.3,0.21634]
[1770099698609,2.38767548,2314.0,2313.0,3.308]
[1770099698610,2.38218373,2313.8,2313.0,3.308]
[1770099699003,7.34842556,2313.7,2313.0,3.308]
[1770099699309,2.38218373,2313.7,2313.0,3.308]
[1770099699704,4.91245428,2313.6,2313.0,3.308]
[1770099700210,7.29463801,2313.6,2313.3,0.21634]
[1770099701805,0.00549175,2314.0,2313.3,2.43506473]
[1770099702010,2.38218373,2314.4,2313.6,0.21631]
[1770099702306,7.26997347,2314.3,2313.6,0.21631]
[1770099702608,2.53851517,2314.3,2313.6,0.21631]
[1770099702803,2.53851517,2314.8,2313.4,8.33102132]
[1770099703011,2.54266245,2314.8,2313.9,0.21628]
[1770099703211,2.54266245,2314.8,2313.9,0.22058375]
[1770099703508,2.54266245,2314.8,2313.9,0.2650129]
[1770099704412,0.00414728,2314.8,2314.2,0.21625]
[1770099704709,2.51641153,2315.1,2314.2,0.26067915]
[1770099705008,2.51641153,2315.1,2314.4,0.21624]
[1770099705205,2.51641153,2315.6,2314.6,0.26063915]
[1770099705511,4.59185192,2315.5,2314.6,0.21621]
[1770099705708,2.53862611,2315.4,2314.6,0.21621]
[1770099706113,2.53862611,2315.2,2314.6,0.21621]
[1770099708911,2.53862611,2315.4,2314.9,0.21619]
[1770099709317,4.77607937,2315.5,2314.9,0.21619]
[1770099709518,0.00344229,2315.6,2315.1,0.21617]
[1770099709917,2.53862611,2315.9,2315.3,0.21615]
[1770099710817,2.50320269,2315.7,2315.1,3.774]
[1770099711018,2.50838332,2315.7,2315.1,3.774]
[1770099712220,2.50838332,2315.7,2315.3,0.21615]
[1770099714511,0.00518063,2315.7,2315.3,0.21615]
[1770099716223,2.36676991,2315.7,2315.3,0.21615]
[1770099716420,0.00518063,2315.7,2315.3,0.21615]
[1770099717819,0.00518063,2315.7,2315.3,0.35373052]
[1770099718027,10.30288488,2317.2,2315.5,0.21614]
[1770099718223,2.36229636,2317.1,2315.5,0.21614]
[1770099718422,2.36229636,2316.7,2315.5,0.21614]
[1770099718722,2.36229636,2316.7,2315.6,0.21613]
[1770099718924,2.36229636,2316.5,2315.7,0.21612]
[1770099719116,2.36229636,2316.5,2315.8,0.2161]
[1770099719315,2.36229636,2316.5,2316.0,0.21609]
[1770099719521,2.36756465,2316.7,2316.0,0.21609]
[1770099720526,2.36756465,2316.7,2315.6,0.00354941]
[1770099720724,2.36756465,2316.7,2315.6,3.04554941]
[1770099722126,2.36756465,2316.7,2315.6,0.00354941]
[1770099722323,2.29952568,2316.5,2315.6,0.00354941]
[1770099722832,2.29952568,2316.3,2315.4,0.21614]
[1770099723325,2.29952568,2316.1,2315.4,0.21614]
[1770099723730,2.29952568,2315.9,2315.4,0.21614]
[1770099723932,2.29952568,2315.9,2315.4,0.2193982]
[1770099724231,6.85514268,2316.6,2315.8,0.21611]
[1770099724425,2.29952568,2316.5,2315.8,0.21611]
[1770099724623,2.29952568,2316.4,2315.8,0.21611]
[1770099725232,2.30463313,2316.7,2315.8,0.21611]
[1770099725634,7.01535496,2316.6,2315.9,0.2161]
[1770099726033,2.29952568,2316.6,2315.8,3.93292321]
[1770099726334,2.29952568,2316.6,2316.1,0.21608]
[1770099726928,5.07531767,2317.7,2316.4,0.21605]
[1770099726929,2.29952568,2316.9,2316.4,0.21605]
[1770099727234,2.29952568,2317.3,2316.4,0.21605]
[1770099727935,2.29952568,2317.1,2316.4,0.21605]
[1770099728136,4.68398481,2317.2,2316.4,1.14841423]
[1770099728331,4.68398481,2317.2,2315.8,3.024]
[1770099728332,2.29952568,2317.7,2317.0,0.21599]
[1770099728630,2.29952568,2318.5,2317.3,0.21596]
[1770099728831,2.29952568,2318.5,2317.6,0.21594]
[1770099729231,2.29952568,2318.5,2317.7,5.65232974]
[1770099729436,2.30472412,2318.5,2317.7,0.00529865]
[1770099729736,2.30472412,2318.5,2318.0,0.2159]
[1770099730132,0.00519844,2318.5,2318.0,1.04829385]
[1770099730333,2.29952568,2319.1,2318.3,0.21587]
[1770099730538,2.29952568,2319.4,2318.3,0.21587]
[1770099730729,4.71898448,2319.0,2318.4,5.50932477]
[1770099730933,2.29952568,2320.4,2318.6,0.83239385]
[1770099731236,7.01851016,2320.1,2319.1,1.04819385]
[1770099731436,2.29952568,2320.0,2319.1,5.7718]
[1770099731636,2.30485656,2320.0,2319.1,5.7718]
[1770099731834,2.29952568,2319.8,2319.1,3.023]
[1770099732232,4.6082445,2319.9,2319.1,3.023]
[1770099732233,2.29952568,2319.5,2319.1,3.023]
[1770099732628,2.30485656,2319.4,2319.1,3.023]
[1770099732830,2.29952568,2319.4,2318.7,3.762]
[1770099734232,2.30485656,2319.1,2318.0,3.2379]
[1770099734434,2.29952568,2319.1,2318.0,6.9689]
[1770099734636,2.29952568,2319.1,2318.3,5.54168575]
[1770099734836,2.29952568,2319.1,2318.1,5.75757575]
[1770099735038,2.30485656,2319.1,2318.1,0.21589]
[1770099735235,2.29952568,2318.5,2318.0,3.022]
[1770099735440,2.30404884,2318.5,2317.7,0.00529865]
[1770099735636,2.30485656,2318.3,2317.7,0.00529865]
[1770099735843,2.29952568,2318.1,2317.7,0.00529865]
[1770099736144,2.30404884,2318.5,2317.7,2.29251645]
[1770099736739,2.30937972,2318.5,2317.7,0.00529865]
[1770099736943,2.30485656,2318.3,2317.7,0.00529865]
[1770099737241,0.00985404,2318.5,2317.7,0.00529865]
[1770099737640,2.30937972,2318.5,2317.7,0.00529865]
[1770099737840,2.30485656,2318.3,2317.7,0.00529865]
[1770099738246,0.00452316,2318.5,2317.7,0.00529865]
[1770099738446,2.29952568,2318.1,2317.7,0.00529865]
[1770099738837,2.30485656,2318.0,2317.7,0.00529865]
[1770099739144,2.29952568,2318.0,2317.6,3.08994]
[1770099739344,2.29952568,2318.3,2317.6,3.08994]
[1770099739542,0.00533088,2318.4,2317.6,3.08994]
[1770099739746,2.30404884,2318.5,2317.7,0.21593]
[1770099740045,2.30404884,2318.5,2317.7,0.22053174]
[1770099740245,2.30937972,2318.5,2317.7,0.22053174]
[1770099740747,2.35456756,2318.2,2317.7,0.22053174]
[1770099741146,2.35989844,2318.1,2317.7,0.22053174]
[1770099741446,2.35456756,2318.1,2317.7,0.22053174]
[1770099741745,2.35989844,2318.1,2317.7,0.22053174]
[1770099742146,2.35989844,2318.1,2317.6,2.874]
[1770099742147,2.35989844,2317.9,2317.6,2.874]
[1770099742441,2.35456756,2317.9,2317.2,3.022]
[1770099742647,2.35456756,2317.9,2317.2,3.23798]
[1770099742944,2.35456756,2317.7,2317.3,3.11378221]
[1770099743141,2.35456756,2317.7,2316.8,0.21601]
[1770099743539,2.35989844,2317.5,2316.8,0.21601]
[1770099743744,2.35456756,2317.5,2316.8,0.21601]
[1770099744040,0.00533088,2317.0,2316.2,0.21606]
[1770099744346,2.35456756,2317.2,2316.3,5.64898358]
[1770099744548,2.35456756,2317.1,2316.3,5.64898358]
[1770099744846,2.35456756,2317.1,2316.2,2.43774507]
[1770099744847,4.55583801,2317.1,2316.2,2.43774507]
[1770099745043,2.35456756,2317.6,2316.6,2.64961846]
[1770099745244,2.35989844,2317.6,2316.6,0.21603]
[1770099745445,2.35456756,2317.0,2316.6,0.21603]
[1770099745846,0.00533088,2316.9,2316.6,0.21603]
[1770099746349,0.00533088,2316.7,2316.6,0.21603]
[1770099746647,0.00474731,2316.7,2316.6,0.21603]
[1770099746847,0.01007819,2316.7,2316.6,0.21603]
[1770099747250,0.00533088,2316.7,2316.2,2.65381507]
[1770099747448,2.35456756,2317.0,2316.2,0.22022661]
[1770099747642,2.35989844,2316.8,2316.2,0.22022661]
[1770099747847,2.35456756,2316.8,2316.2,0.22022661]
[1770099748149,0.00533088,2316.5,2315.6,2.64970846]
[1770099748445,2.35456756,2316.6,2315.7,5.90667827]
[1770099748851,7.10738041,2316.6,2315.7,5.90667827]
[1770099749244,7.11206598,2316.6,2315.7,5.91010582]
[1770099750348,7.11206598,2316.6,2315.7,8.12757428]
[1770099750549,4.75216754,2316.6,2315.9,0.21609]
[1770099750752,0.00533088,2316.5,2315.9,0.21609]
[1770099751252,4.75216754,2316.6,2316.0,2.43358846]
[1770099751448,2.35456756,2317.2,2316.2,2.64965846]
[1770099751853,0.00533088,2317.0,2316.2,2.64965846]
[1770099752246,2.35989844,2316.8,2316.2,0.21607]
[1770099752552,2.36392483,2316.8,2316.2,0.21607]
[1770099752748,0.00533088,2316.6,2316.2,0.21607]
[1770099752955,0.00533088,2316.5,2316.2,0.21607]
[1770099753359,0.00533088,2316.3,2316.2,0.21607]
[1770099753551,0.00533088,2316.4,2316.2,0.21607]
[1770099754053,0.00533088,2316.3,2316.2,0.21607]
[1770099754246,0.00533088,2316.5,2316.2,0.21607]
[1770099754448,0.00533088,2316.4,2316.2,0.21607]
[1770099754649,0.00533088,2316.5,2316.2,0.21607]
[1770099755054,0.00533088,2316.3,2316.2,0.21607]
[1770099755347,0.00533088,2316.3,2315.3,5.71356721]
[1770099755348,2.35456756,2316.0,2315.6,0.21612]
[1770099755753,0.00190333,2315.9,2315.6,0.21612]
[1770099756146,0.00190333,2315.7,2315.3,3.021]
[1770099756350,0.00190333,2315.8,2315.3,3.02619181]
[1770099756751,0.00190333,2315.7,2315.3,3.02619181]
[1770099757148,0.00190333,2315.6,2315.3,3.02619181]
[1770099757455,4.94599565,2315.9,2315.3,3.02619181]
[1770099757456,0.00190333,2315.7,2315.3,3.02619181]
[1770099757758,0.00190333,2315.6,2315.3,3.02619181]
[1770099758150,7.30056321,2315.9,2315.3,3.02619181]
[1770099758151,0.00190333,2315.5,2315.3,3.02619181]
[1770099758353,0.00190333,2315.6,2315.3,3.02619181]
[1770099758857,0.00190333,2315.5,2315.3,3.02619181]
[1770099759154,0.00190333,2315.6,2315.3,3.02619181]
[1770099759554,0.00190333,2315.5,2315.3,3.02619181]
[1770099759756,7.30056321,2315.9,2315.3,3.02619181]
[1770099760057,0.00190333,2315.6,2315.3,3.02619181]
[1770099760555,2.35456756,2315.8,2315.3,3.02619181]
[1770099760556,0.00190333,2315.4,2315.3,0.00519181]
[1770099763357,2.35456756,2315.4,2314.7,2.43358846]
[1770099763657,2.35456756,2315.7,2314.7,2.43358846]
[1770099763856,2.35456756,2315.7,2315.1,0.21617]
[1770099764156,2.35456756,2315.5,2314.7,2.43358846]
[1770099764356,2.35456756,2315.5,2314.7,2.43847656]
[1770099764553,2.35456756,2315.3,2314.7,0.0048881]
[1770099764957,7.09579624,2315.2,2314.7,0.0048881]
[1770099765158,2.35456756,2315.1,2314.7,0.0048881]
[1770099765358,2.35792776,2315.1,2314.7,0.0048881]
[1770099766658,2.35456756,2316.1,2314.7,2.43847656]
[1770099766956,2.35456756,2316.0,2314.9,0.21619]
[1770099767358,4.80483986,2315.9,2315.3,0.21615]
[1770099767560,4.8102337,2315.9,2315.3,0.21615]
[1770099767754,4.68802957,2316.0,2315.6,0.21612]
[1770099767959,2.35456756,2316.3,2315.4,5.65532838]
[1770099768154,2.35456756,2316.3,2315.7,0.21612]
[1770099768356,4.68802957,2315.9,2315.2,3.97816]
[1770099768557,2.35456756,2315.9,2315.2,0.21616]
[1770099768762,7.09544277,2316.2,2315.3,0.21615]
[1770099768962,4.74087521,2315.8,2315.5,2.43358846]
[1770099769162,0.00516164,2315.9,2315.4,0.21614]
[1770099769359,2.35456756,2315.7,2315.4,0.21614]
[1770099769858,2.35456756,2315.7,2314.8,6.41277846]
[1770099770063,4.906341,2315.6,2314.8,6.41277846]
[1770099770264,4.906341,2315.6,2314.9,5.88502068]
[1770099770457,0.00516164,2315.9,2315.0,2.48840802]
[1770099770861,4.96218693,2315.8,2315.0,2.48840802]
[1770099771059,7.44065152,2315.8,2315.1,0.21617]
[1770099771255,2.47846459,2315.7,2315.1,0.21617]
[1770099771463,2.47846459,2315.7,2314.7,2.47305343]
[1770099771766,4.59158486,2315.6,2314.7,2.47305343]
[1770099772064,7.07004945,2315.7,2314.7,2.47305343]
[1770099772268,7.07004945,2315.7,2315.1,0.21617]
[1770099772462,2.47846459,2315.7,2315.1,0.21617]
[1770099772766,7.18532625,2315.6,2315.1,0.21617]
[1770099772960,2.47846459,2315.5,2315.1,0.21617]
[1770099773363,4.70686166,2315.4,2315.1,2.68433533]
[1770099773663,0.00516164,2315.9,2315.1,2.68433533]
[1770099774064,4.59599455,2315.8,2315.1,2.68433533]
[1770099774270,7.07445914,2315.8,2315.1,0.21617]
[1770099775266,4.59599455,2315.8,2315.1,2.68433533]
[1770099777167,7.07445914,2315.8,2315.1,0.21617]
[1770099777376,2.47846459,2315.7,2315.1,0.21617]
[1770099779972,0.00516164,2315.9,2315.1,2.68433533]
[1770099780274,0.00516164,2315.9,2315.4,2.68430533]
[1770099780467,2.48362623,2315.9,2315.4,0.21614]
[1770099780873,7.33867809,2315.8,2315.4,0.21614]
[1770099781174,0.00516164,2315.9,2315.4,0.21614]
[1770099781476,0.00516164,2315.9,2315.4,2.68430533]
[1770099781976,0.00516164,2315.9,2315.5,2.68430533]
[1770099782275,2.47846459,2316.4,2315.5,2.68430533]
[1770099782473,2.47846459,2316.4,2315.5,0.21614]
[1770099782672,2.47846459,2316.3,2315.5,0.21614]
[1770099783073,4.88156225,2316.2,2315.5,0.21614]
[1770099783376,4.88609201,2316.2,2315.5,0.21614]
[1770099786074,4.88609201,2316.2,2315.5,2.68430533]
[1770099786274,4.88609201,2316.2,2315.6,0.21612]
[1770099791477,7.3645566,2316.2,2315.6,0.21612]
[1770099791673,4.88609201,2316.2,2315.9,0.2161]
[1770099791878,0.00452976,2316.2,2315.9,2.68426533]
[1770099792080,2.48299435,2316.2,2315.4,2.46816533]
[1770099792381,4.57600724,2316.1,2315.5,0.21613]
[1770099792979,7.05447183,2316.1,2315.5,0.21613]
[1770099793781,2.47846459,2316.0,2314.9,6.33340358]
[1770099794073,4.99057648,2315.9,2315.0,2.68434533]
[1770099794279,2.47846459,2315.8,2315.0,0.21618]
[1770099794679,7.15013617,2315.7,2315.0,0.21618]
[1770099794982,2.47846459,2315.6,2315.0,0.21618]
[1770099795282,7.15013617,2315.6,2315.0,0.21618]
[1770099795480,2.47846459,2315.5,2315.0,0.21618]
[1770099798376,2.47846459,2315.5,2314.7,6.21805343]
[1770099798580,2.47846459,2315.5,2314.7,3.7498881]
[1770099798780,2.47846459,2315.3,2314.7,3.7498881]
[1770099799084,4.94898763,2315.2,2314.7,3.9660981]
[1770099799284,7.42745222,2315.2,2314.7,3.9660981]
[1770099799486,2.47846459,2315.1,2314.7,3.9660981]
[1770099799884,2.47846459,2315.6,2314.7,3.9660981]
[1770099800185,2.36638329,2315.5,2314.7,3.9660981]
[1770099800582,2.36638329,2315.3,2314.7,3.9660981]
[1770099800982,7.10392205,2315.2,2314.7,3.9660981]